[Event "44th Chess Olympiad Women 2022"]
[Site "Chennai"]
[Date "2022.08.08"]
[Round "10.46"]
[White "Badenhorst, Chloe"]
[Black "Kaslan, Victoria"]
[Result "1-0"]
[WhiteElo "1703"]
[BlackElo "1477"]
[Annotator "NA RC"]
[PlyCount "73"]
[EventDate "2022.??.??"]
[TimeControl "60"]

1. e4 {[%emt 0:00:02]} c5 {[%emt 0:00:09]} 2. Nc3 {[%emt 0:00:07]} d6 {[%emt 0:
00:00]} 3. g3 {[%emt 0:00:07]} Nc6 {[%emt 0:00:27]} 4. Bg2 {[%emt 0:00:10]} g6
{[%emt 0:00:37]} 5. Nge2 {[%emt 0:00:57]} Bg7 {[%emt 0:00:36]} 6. d3 {[%emt 0:
00:00]} e6 {[%emt 0:00:34]} 7. Be3 {[%emt 0:01:06]} Nge7 {[%emt 0:00:26]} 8.
Qd2 {[%emt 0:00:24]} Nd4 {[%emt 0:02:47]} 9. Nc1 {[%emt 0:02:33]} Rb8 {[%emt 0:
00:00]} 10. Nd1 {[%emt 0:00:53]} b5 {[%emt 0:03:24]} 11. c3 {[%emt 0:00:26]}
Ndc6 {[%emt 0:01:48]} 12. Bh6 {[%emt 0:01:34]} O-O {[%emt 0:01:52]} 13. h4 {
[%emt 0:01:10]} Kh8 {[%emt 0:13:47]} 14. Bxg7+ {[%emt 0:13:21]} Kxg7 {[%emt 0:
00:00]} 15. h5 {[%emt 0:00:13]} Ng8 {[%emt 0:03:13]} 16. hxg6 {[%emt 0:10:37]}
fxg6 {[%emt 0:06:17]} 17. Ne3 {[%emt 0:05:36]} Nf6 {[%emt 0:16:46]} 18. f4 {
[%emt 0:02:47]} Ne7 {[%emt 0:11:44]} 19. Ne2 {[%emt 0:08:33]} Rh8 {[%emt 0:00:
00]} 20. g4 {[%emt 0:06:27]} d5 {[%emt 0:07:13]} 21. e5 {[%emt 0:02:33]} Nd7 {
[%emt 0:01:30]} 22. d4 {[%emt 0:01:29]} cxd4 {[%emt 0:07:23]} 23. Nxd4 {
[%emt 0:00:36]} Rb6 {[%emt 0:04:49]} 24. Qf2 {[%emt 0:11:31]} Ng8 {[%emt 0:00:
00]} 25. Qg3 {[%emt 0:01:31]} Qc7 {[%emt 0:00:46]} 26. Rd1 {[%emt 0:12:43]} Ne7
{[%emt 0:01:17]} 27. Qh4 {[%emt 0:00:29]} Ng8 {[%emt 0:00:18]} 28. Bxd5 {
[%emt 0:08:08]} Nf8 {[%emt 0:01:15]} 29. Bg2 {[%emt 0:01:09]} Bd7 {[%emt 0:00:
00]} 30. Qg3 {[%emt 0:00:25]} Qc8 {[%emt 0:00:55]} 31. f5 {[%emt 0:01:08]} a6 {
[%emt 0:00:23]} 32. f6+ {[%emt 0:00:26]} Kf7 {[%emt 0:00:17]} 33. Nf3 {[%emt 0:
00:00]} Nxf6 {[%emt 0:00:41]} 34. Ng5+ {[%emt 0:00:40]} Kg7 {[%emt 0:00:28]}
35. exf6+ {[%emt 0:00:04]} Kxf6 {[%emt 0:00:10]} 36. Qf4+ {[%emt 0:00:49]} Ke7
{[%emt 0:00:16]} 37. Qf7+ {[%emt 0:01:03]} 1-0

[Event "44th Chess Olympiad Women 2022"]
[Site "Chennai"]
[Date "2022.08.08"]
[Round "10.46"]
[White "Bouah, Denise"]
[Black "Creebsburg, Shefali"]
[Result "1-0"]
[WhiteElo "1736"]
[BlackElo "1151"]
[Annotator "NA RC"]
[PlyCount "83"]
[EventDate "2022.??.??"]
[TimeControl "60"]

1. e4 {[%emt 0:00:03]} e5 {[%emt 0:00:11]} 2. Nf3 {[%emt 0:00:05]} Nc6 {
[%emt 0:00:11]} 3. Bb5 {[%emt 0:00:03]} a6 {[%emt 0:00:10]} 4. Ba4 {[%emt 0:00:
00]} Nf6 {[%emt 0:00:16]} 5. d3 {[%emt 0:00:06]} d6 {[%emt 0:00:14]} 6. c3 {
[%emt 0:00:07]} b5 {[%emt 0:00:21]} 7. Bc2 {[%emt 0:00:05]} Be7 {[%emt 0:00:36]
} 8. O-O {[%emt 0:00:21]} O-O {[%emt 0:00:46]} 9. h3 {[%emt 0:00:50]} h6 {
[%emt 0:00:34]} 10. Re1 {[%emt 0:00:16]} Na5 {[%emt 0:00:41]} 11. Nbd2 {
[%emt 0:01:05]} c5 {[%emt 0:00:18]} 12. a4 {[%emt 0:01:47]} Bb7 {[%emt 0:01:50]
} 13. Nf1 {[%emt 0:00:15]} Re8 {[%emt 0:01:13]} 14. Ng3 {[%emt 0:07:51]} Rc8 {
[%emt 0:06:45]} 15. Nh2 {[%emt 0:00:00]} Bf8 {[%emt 0:07:53]} 16. Ng4 {[%emt 0:
00:00]} Re6 {[%emt 0:08:23]} 17. Nf5 {[%emt 0:05:01]} Nxg4 {[%emt 0:05:03]} 18.
hxg4 {[%emt 0:01:16]} d5 {[%emt 0:05:01]} 19. Qf3 {[%emt 0:11:58]} dxe4 {
[%emt 0:05:49]} 20. dxe4 {[%emt 0:00:33]} Nc6 {[%emt 0:08:56]} 21. Qh3 {
[%emt 0:09:26]} Rg6 {[%emt 0:06:44]} 22. Kh2 {[%emt 0:12:15]} Rc7 {[%emt 0:00:
00]} 23. Rh1 {[%emt 0:08:37]} Bc8 {[%emt 0:03:06]} 24. Kg1 {[%emt 0:08:50]}
Bxf5 {[%emt 0:14:28]} 25. exf5 {[%emt 0:00:39]} Rd6 {[%emt 0:00:44]} 26. g5 {
[%emt 0:03:12]} f6 {[%emt 0:01:29]} 27. gxh6 {[%emt 0:01:10]} gxh6 {[%emt 0:00:
00]} 28. Bxh6 {[%emt 0:01:49]} Rh7 {[%emt 0:02:20]} 29. Qg4+ {[%emt 0:02:51]}
Bg7 {[%emt 0:01:17]} 30. Rh3 {[%emt 0:03:17]} Qf8 {[%emt 0:02:35]} 31. axb5 {
[%emt 0:01:00]} axb5 {[%emt 0:00:29]} 32. Be4 {[%emt 0:02:16]} Ne7 {[%emt 0:00:
00]} 33. Rg3 {[%emt 0:06:24]} c4 {[%emt 0:01:17]} 34. Ra8 {[%emt 0:01:28]} Rd8
{[%emt 0:01:51]} 35. Rxd8 {[%emt 0:00:39]} Qxd8 {[%emt 0:00:00]} 36. Bxg7 {
[%emt 0:00:17]} Kf7 {[%emt 0:00:17]} 37. Bxf6 {[%emt 0:05:52]} Kxf6 {[%emt 0:
00:00]} 38. Qg5+ {[%emt 0:00:44]} Kf7 {[%emt 0:00:12]} 39. Bf3 {[%emt 0:02:23]}
Kf8 {[%emt 0:01:38]} 40. f6 {[%emt 0:01:49]} Qd7 {[%emt 0:00:58]} 41. fxe7+ {
[%emt 0:30:29]} Kf7 {[%emt 0:02:57]} 42. Qg6+ {[%emt 0:00:00]} 1-0

[Event "44th Chess Olympiad Women 2022"]
[Site "Chennai"]
[Date "2022.08.08"]
[Round "10.46"]
[White "Kaslan, Catherine"]
[Black "February, Jesse Nikki"]
[Result "1-0"]
[WhiteElo "1872"]
[BlackElo "1872"]
[Annotator "NA RC"]
[PlyCount "47"]
[EventDate "2022.??.??"]
[TimeControl "60"]

1. e4 {[%emt 0:00:10]} e6 {[%emt 0:00:07]} 2. d4 {[%emt 0:00:18]} d5 {[%emt 0:
00:00]} 3. Nd2 {[%emt 0:00:24]} dxe4 {[%emt 0:00:15]} 4. Nxe4 {[%emt 0:00:12]}
Bd7 {[%emt 0:00:07]} 5. c3 {[%emt 0:03:54]} Bc6 {[%emt 0:00:08]} 6. Ng3 {
[%emt 0:01:51]} Nd7 {[%emt 0:00:12]} 7. Nf3 {[%emt 0:01:24]} Ngf6 {[%emt 0:00:
00]} 8. Be2 {[%emt 0:04:00]} b6 {[%emt 0:00:20]} 9. O-O {[%emt 0:03:01]} Bb7 {
[%emt 0:00:07]} 10. Be3 {[%emt 0:00:57]} Be7 {[%emt 0:00:52]} 11. Qa4 {[%emt 0:
00:00]} O-O {[%emt 0:00:39]} 12. Rfd1 {[%emt 0:04:06]} a6 {[%emt 0:07:29]} 13.
Ne5 {[%emt 0:05:06]} b5 {[%emt 0:00:17]} 14. Qc2 {[%emt 0:00:46]} Nd5 {[%emt 0:
00:00]} 15. Bf3 {[%emt 0:10:03]} N7b6 {[%emt 0:03:09]} 16. b3 {[%emt 0:03:49]}
Nxe3 {[%emt 0:07:26]} 17. fxe3 {[%emt 0:03:10]} Nd5 {[%emt 0:00:06]} 18. Bxd5 {
[%emt 0:13:20]} Qxd5 {[%emt 0:01:11]} 19. e4 {[%emt 0:01:44]} Qd6 {[%emt 0:00:
00]} 20. Nd3 {[%emt 0:04:44]} Qb6 {[%emt 0:06:26]} 21. b4 {[%emt 0:03:13]} Rfd8
{[%emt 0:01:24]} 22. Nc5 {[%emt 0:03:37]} Bc8 {[%emt 0:03:34]} 23. e5 {[%emt 0:
00:00]} Bxc5 {[%emt 0:01:22]} 24. dxc5 {[%emt 0:00:33]} 1-0

[Event "44th Chess Olympiad Women 2022"]
[Site "Chennai"]
[Date "2022.08.08"]
[Round "10.46"]
[White "Wijnhard, Joelle"]
[Black "Selkirk, Rebecca"]
[Result "0-1"]
[WhiteElo "1291"]
[BlackElo "1745"]
[Annotator "NA RC"]
[PlyCount "76"]
[EventDate "2022.??.??"]
[TimeControl "60"]

1. e4 {[%emt 0:00:05]} c6 {[%emt 0:00:06]} 2. Nf3 {[%emt 0:00:14]} d5 {[%emt 0:
00:00]} 3. exd5 {[%emt 0:00:16]} cxd5 {[%emt 0:00:05]} 4. d4 {[%emt 0:00:33]}
Nf6 {[%emt 0:01:24]} 5. c3 {[%emt 0:01:39]} Nc6 {[%emt 0:01:06]} 6. Be2 {
[%emt 0:01:45]} Bf5 {[%emt 0:00:38]} 7. Be3 {[%emt 0:02:24]} e6 {[%emt 0:00:28]
} 8. O-O {[%emt 0:00:32]} Bd6 {[%emt 0:00:25]} 9. Nbd2 {[%emt 0:01:32]} h6 {
[%emt 0:02:14]} 10. h3 {[%emt 0:01:14]} O-O {[%emt 0:01:40]} 11. Re1 {[%emt 0:
00:00]} Bc7 {[%emt 0:01:52]} 12. Nf1 {[%emt 0:04:13]} Qd6 {[%emt 0:02:00]} 13.
Bd3 {[%emt 0:16:49]} Ne4 {[%emt 0:03:22]} 14. Qc2 {[%emt 0:10:41]} Bg6 {
[%emt 0:03:37]} 15. Rad1 {[%emt 0:11:30]} f5 {[%emt 0:03:01]} 16. Bxe4 {
[%emt 0:05:47]} fxe4 {[%emt 0:00:22]} 17. N3h2 {[%emt 0:01:56]} Rac8 {[%emt 0:
00:00]} 18. Qe2 {[%emt 0:06:16]} Rcd8 {[%emt 0:07:55]} 19. c4 {[%emt 0:07:21]}
Nb4 {[%emt 0:01:32]} 20. c5 {[%emt 0:01:55]} Qc6 {[%emt 0:03:35]} 21. Ra1 {
[%emt 0:03:05]} Nd3 {[%emt 0:02:41]} 22. Reb1 {[%emt 0:04:53]} e5 {[%emt 0:00:
00]} 23. b4 {[%emt 0:01:07]} Qf6 {[%emt 0:00:27]} 24. Ng4 {[%emt 0:02:59]} Qf7
{[%emt 0:01:52]} 25. Rb3 {[%emt 0:01:22]} h5 {[%emt 0:02:40]} 26. Ngh2 {
[%emt 0:02:11]} Qf6 {[%emt 0:01:56]} 27. dxe5 {[%emt 0:00:27]} Bxe5 {[%emt 0:
00:00]} 28. Rd1 {[%emt 0:03:34]} d4 {[%emt 0:00:20]} 29. Bc1 {[%emt 0:00:55]}
Nxf2 {[%emt 0:01:01]} 30. Re1 {[%emt 0:00:54]} e3 {[%emt 0:01:58]} 31. Nf3 {
[%emt 0:01:02]} Nxh3+ {[%emt 0:01:50]} 32. gxh3 {[%emt 0:00:57]} Qxf3 {[%emt 0:
00:00]} 33. Qxf3 {[%emt 0:00:36]} Rxf3 {[%emt 0:00:02]} 34. Kg2 {[%emt 0:00:33]
} Be4 {[%emt 0:01:00]} 35. Rb2 {[%emt 0:00:48]} Rg3+ {[%emt 0:01:08]} 36. Kh2 {
[%emt 0:00:20]} Rg2+ {[%emt 0:00:06]} 37. Kh1 Rh2+ {[%emt 0:00:08]} 38. Kg1 {
[%emt 0:00:24]} Rh1# {[%emt 0:00:41]} 0-1

[Event "44th Chess Olympiad Women 2022"]
[Site "Chennai"]
[Date "2022.08.08"]
[Round "10.47"]
[White "A-ALI, Sali Abbas Abdulzah"]
[Black "Razafindratina, Mariam Clarisse"]
[Result "1-0"]
[WhiteElo "1864"]
[BlackElo "1318"]
[Annotator "NA RC"]
[PlyCount "71"]
[EventDate "2022.??.??"]
[TimeControl "60"]

1. e4 {[%emt 0:00:03]} e5 {[%emt 0:00:04]} 2. Bc4 {[%emt 0:00:05]} Nf6 {
[%emt 0:00:18]} 3. d3 {[%emt 0:00:13]} h6 {[%emt 0:00:06]} 4. Nf3 {[%emt 0:00:
00]} Bc5 {[%emt 0:00:14]} 5. O-O {[%emt 0:14:40]} d6 {[%emt 0:02:15]} 6. h3 {
[%emt 0:00:24]} O-O {[%emt 0:00:06]} 7. c3 {[%emt 0:00:07]} a6 {[%emt 0:00:55]}
8. d4 {[%emt 0:00:25]} d5 {[%emt 0:10:13]} 9. exd5 {[%emt 0:08:37]} exd4 {
[%emt 0:03:40]} 10. cxd4 {[%emt 0:00:32]} Ba7 {[%emt 0:03:11]} 11. Nc3 {
[%emt 0:00:36]} b5 {[%emt 0:00:55]} 12. Bb3 {[%emt 0:01:37]} Bb7 {[%emt 0:00:
00]} 13. Bf4 {[%emt 0:04:27]} Bxd5 {[%emt 0:04:30]} 14. Nxd5 {[%emt 0:02:53]}
Nxd5 {[%emt 0:07:31]} 15. Be3 {[%emt 0:05:00]} c6 {[%emt 0:08:18]} 16. Rc1 {
[%emt 0:00:34]} Qd6 {[%emt 0:03:00]} 17. Ne5 {[%emt 0:00:57]} f6 {[%emt 0:00:
00]} 18. Ng6 {[%emt 0:01:18]} Rd8 {[%emt 0:08:47]} 19. Qf3 {[%emt 0:02:50]} a5
{[%emt 0:04:06]} 20. a3 {[%emt 0:00:39]} a4 {[%emt 0:01:35]} 21. Ba2 {[%emt 0:
00:00]} Bb6 {[%emt 0:00:35]} 22. Bf4 {[%emt 0:02:49]} Qd7 {[%emt 0:02:40]} 23.
Rfd1 {[%emt 0:09:01]} Na6 {[%emt 0:05:36]} 24. Rxc6 {[%emt 0:02:55]} Bc7 {
[%emt 0:05:16]} 25. Qxd5+ {[%emt 0:04:39]} Qxd5 {[%emt 0:01:04]} 26. Bxd5+ {
[%emt 0:00:17]} Rxd5 {[%emt 0:00:23]} 27. Ne7+ {[%emt 0:00:08]} Kh7 {[%emt 0:
00:00]} 28. Nxd5 {[%emt 0:00:08]} Bxf4 {[%emt 0:01:53]} 29. Nxf4 {[%emt 0:00:
00]} Ra7 {[%emt 0:01:35]} 30. d5 {[%emt 0:00:17]} Nb8 {[%emt 0:00:18]} 31. Rb6
{[%emt 0:00:07]} Nd7 {[%emt 0:00:25]} 32. Rxb5 {[%emt 0:00:12]} Ne5 {[%emt 0:
00:00]} 33. d6 {[%emt 0:00:25]} g5 {[%emt 0:00:14]} 34. Ne6 {[%emt 0:00:15]}
Nd7 {[%emt 0:01:09]} 35. Rc1 {[%emt 0:00:26]} Kg6 {[%emt 0:01:38]} 36. Rc7 {
[%emt 0:00:17]} 1-0

[Event "44th Chess Olympiad Women 2022"]
[Site "Chennai"]
[Date "2022.08.08"]
[Round "10.47"]
[White "Al-Fayyadh, Zainab Asif Abdulah"]
[Black "Raharimanana, Faratiana"]
[Result "1/2-1/2"]
[WhiteElo "1749"]
[BlackElo "1707"]
[Annotator "NA RC"]
[PlyCount "126"]
[EventDate "2022.??.??"]
[TimeControl "60"]

1. e4 {[%emt 0:00:03]} e5 {[%emt 0:00:12]} 2. Nf3 {[%emt 0:00:05]} Nc6 {
[%emt 0:00:09]} 3. Bb5 {[%emt 0:00:22]} a6 {[%emt 0:00:25]} 4. Ba4 {[%emt 0:00:
00]} Nf6 {[%emt 0:00:18]} 5. O-O {[%emt 0:00:06]} b5 {[%emt 0:00:26]} 6. Bb3 {
[%emt 0:00:06]} d6 {[%emt 0:00:25]} 7. c3 {[%emt 0:00:21]} Be7 {[%emt 0:00:53]}
8. Re1 {[%emt 0:00:21]} O-O {[%emt 0:00:18]} 9. h3 {[%emt 0:00:11]} Na5 {
[%emt 0:00:30]} 10. Bc2 {[%emt 0:00:07]} c5 {[%emt 0:00:25]} 11. d4 {[%emt 0:
00:00]} Qc7 {[%emt 0:00:46]} 12. d5 {[%emt 0:00:52]} Nc4 {[%emt 0:01:29]} 13.
b3 {[%emt 0:02:31]} Nb6 {[%emt 0:00:47]} 14. Nbd2 {[%emt 0:00:21]} Re8 {
[%emt 0:00:30]} 15. Nf1 {[%emt 0:00:22]} Bf8 {[%emt 0:00:24]} 16. Bg5 {[%emt 0:
00:00]} Nfd7 {[%emt 0:00:47]} 17. Ng3 {[%emt 0:01:09]} f6 {[%emt 0:00:51]} 18.
Be3 {[%emt 0:01:15]} g6 {[%emt 0:00:28]} 19. h4 {[%emt 0:07:16]} Bg7 {[%emt 0:
00:00]} 20. h5 {[%emt 0:00:30]} Nf8 {[%emt 0:00:26]} 21. Nh4 {[%emt 0:02:53]}
Qd8 {[%emt 0:06:12]} 22. h6 {[%emt 0:26:30]} Bh8 {[%emt 0:03:21]} 23. Nhf5 {
[%emt 0:00:47]} gxf5 {[%emt 0:24:07]} 24. exf5 {[%emt 0:00:29]} Kf7 {[%emt 0:
00:00]} 25. Qh5+ {[%emt 0:01:11]} Ke7 {[%emt 0:00:51]} 26. Rad1 {[%emt 0:00:40]
} Kd7 {[%emt 0:00:33]} 27. Ne4 {[%emt 0:02:12]} Rb8 {[%emt 0:00:49]} 28. Bxc5 {
[%emt 0:02:49]} dxc5 {[%emt 0:08:38]} 29. Nxc5+ {[%emt 0:01:28]} Kd6 {[%emt 0:
00:00]} 30. Ne4+ {[%emt 0:00:34]} Kc7 {[%emt 0:00:19]} 31. d6+ {[%emt 0:02:19]}
Kb7 {[%emt 0:01:54]} 32. Qf7+ {[%emt 0:02:11]} Bd7 {[%emt 0:01:02]} 33. Nc5+ {
[%emt 0:02:33]} Ka7 {[%emt 0:00:33]} 34. Be4 {[%emt 0:02:46]} Qc8 {[%emt 0:00:
00]} 35. b4 {[%emt 0:04:36]} Nc4 {[%emt 0:07:09]} 36. Bd5 {[%emt 0:02:06]} Nxd6
{[%emt 0:03:35]} 37. Qg8 {[%emt 0:02:19]} Ne6 {[%emt 0:09:30]} 38. Qxh7 {
[%emt 0:01:08]} Nxc5 {[%emt 0:00:33]} 39. bxc5 {[%emt 0:00:16]} Nxf5 {[%emt 0:
00:00]} 40. c6 {[%emt 0:00:35]} Re7 {[%emt 0:00:17]} 41. cxd7 {[%emt 0:30:55]}
Qxd7 {[%emt 0:31:48]} 42. Qg6 {[%emt 0:00:29]} Nd6 {[%emt 0:01:47]} 43. c4 {
[%emt 0:04:47]} bxc4 {[%emt 0:03:16]} 44. Bxc4 {[%emt 0:02:19]} Qc7 {[%emt 0:
00:00]} 45. Bd3 {[%emt 0:03:56]} Rb2 {[%emt 0:09:10]} 46. Qg8 {[%emt 0:02:04]}
Re8 {[%emt 0:00:00]} 47. h7 {[%emt 0:00:00]} Qc5 {[%emt 0:00:00]} 48. Be2 {
[%emt 0:00:00]} Rbb8 {[%emt 0:00:00]} 49. Qg6 {[%emt 0:00:00]} e4 {[%emt 0:00:
00]} 50. Rc1 {[%emt 0:00:00]} Qb6 {[%emt 0:00:00]} 51. Red1 {[%emt 0:00:00]}
Rec8 {[%emt 0:00:00]} 52. Rxc8 {[%emt 0:00:00]} Rxc8 {[%emt 0:00:00]} 53. Qg8 {
[%emt 0:00:00]} Rb8 {[%emt 0:00:00]} 54. Qe6 {[%emt 0:00:00]} Nb7 {[%emt 0:00:
00]} 55. Qxe4 {[%emt 0:00:00]} Rd8 {[%emt 0:00:00]} 56. Rb1 {[%emt 0:00:00]}
Qc7 {[%emt 0:00:00]} 57. Qe3+ {[%emt 0:00:00]} Nc5 {[%emt 0:00:00]} 58. Bf3 {
[%emt 0:00:00]} Rb8 {[%emt 0:00:00]} 59. Rc1 {[%emt 0:00:00]} Kb6 {[%emt 0:00:
00]} 60. Rb1+ {[%emt 0:00:00]} Ka7 {[%emt 0:00:00]} 61. Rc1 {[%emt 0:00:00]}
Kb6 {[%emt 0:00:07]} 62. Rb1+ {[%emt 0:00:00]} Ka7 {[%emt 0:00:18]} 63. Rc1 {
[%emt 0:00:00]} Kb6 {[%emt 0:00:56]} 1/2-1/2

[Event "44th Chess Olympiad Women 2022"]
[Site "Chennai"]
[Date "2022.08.08"]
[Round "10.47"]
[White "Razafindrabe, Bakoly"]
[Black "Tiba, Mahdi Attiyah"]
[Result "1-0"]
[WhiteElo "1238"]
[BlackElo "1759"]
[Annotator "NA RC"]
[PlyCount "59"]
[EventDate "2022.??.??"]
[TimeControl "60"]

1. e4 {[%emt 0:00:06]} d5 {[%emt 0:00:12]} 2. exd5 {[%emt 0:00:11]} Qxd5 {
[%emt 0:00:03]} 3. Nc3 {[%emt 0:00:14]} Qa5 {[%emt 0:00:02]} 4. d4 {[%emt 0:00:
00]} c6 {[%emt 0:00:05]} 5. Bc4 {[%emt 0:00:24]} Nf6 {[%emt 0:00:29]} 6. Nf3 {
[%emt 0:00:21]} Bf5 {[%emt 0:00:18]} 7. Bd2 {[%emt 0:01:53]} e6 {[%emt 0:00:25]
} 8. Nd5 {[%emt 0:06:24]} Qd8 {[%emt 0:00:24]} 9. Nxf6+ {[%emt 0:00:28]} Qxf6 {
[%emt 0:00:54]} 10. Bb3 {[%emt 0:00:52]} h6 {[%emt 0:01:22]} 11. Qe2 {[%emt 0:
00:00]} Be7 {[%emt 0:10:55]} 12. h3 {[%emt 0:00:58]} Bh7 {[%emt 0:03:43]} 13.
O-O-O {[%emt 0:07:56]} O-O {[%emt 0:11:30]} 14. g4 {[%emt 0:00:33]} Bd6 {
[%emt 0:03:12]} 15. Rhg1 {[%emt 0:11:40]} g5 {[%emt 0:07:35]} 16. Ne5 {[%emt 0:
00:00]} Rd8 {[%emt 0:19:48]} 17. h4 {[%emt 0:05:22]} Nd7 {[%emt 0:08:55]} 18.
Rde1 {[%emt 0:02:56]} Bf8 {[%emt 0:10:38]} 19. hxg5 {[%emt 0:03:39]} hxg5 {
[%emt 0:00:25]} 20. Ref1 {[%emt 0:04:11]} Nxe5 {[%emt 0:07:35]} 21. dxe5 {
[%emt 0:00:42]} Qe7 {[%emt 0:00:25]} 22. f4 {[%emt 0:02:44]} gxf4 {[%emt 0:00:
00]} 23. Bxf4 {[%emt 0:00:45]} Qc5 {[%emt 0:06:41]} 24. Kb1 {[%emt 0:07:22]} b5
{[%emt 0:01:37]} 25. Qh2 {[%emt 0:00:51]} Bg6 {[%emt 0:01:15]} 26. Rh1 {
[%emt 0:09:10]} Bg7 {[%emt 0:00:13]} 27. Re1 {[%emt 0:00:31]} Kf8 {[%emt 0:00:
00]} 28. Bg5 {[%emt 0:02:41]} Rd7 {[%emt 0:00:28]} 29. Bf6 {[%emt 0:01:23]}
Bxf6 {[%emt 0:00:25]} 30. exf6 {[%emt 0:00:28]} 1-0

[Event "44th Chess Olympiad Women 2022"]
[Site "Chennai"]
[Date "2022.08.08"]
[Round "10.47"]
[White "Razafindrabiaza, Christine"]
[Black "Sara Masood Abdullah"]
[Result "0-1"]
[WhiteElo "1635"]
[BlackElo "1677"]
[Annotator "NA RC"]
[PlyCount "106"]
[EventDate "2022.??.??"]
[TimeControl "60"]

1. d4 {[%emt 0:00:08]} d5 {[%emt 0:00:14]} 2. c4 {[%emt 0:00:10]} e6 {[%emt 0:
00:00]} 3. e3 {[%emt 0:00:16]} Nf6 {[%emt 0:00:09]} 4. Nf3 {[%emt 0:00:15]}
Nbd7 {[%emt 0:00:22]} 5. Be2 {[%emt 0:00:25]} Be7 {[%emt 0:01:02]} 6. O-O {
[%emt 0:00:16]} O-O {[%emt 0:00:09]} 7. Nc3 {[%emt 0:00:15]} c6 {[%emt 0:00:59]
} 8. h3 {[%emt 0:00:57]} Re8 {[%emt 0:04:17]} 9. Re1 {[%emt 0:01:04]} Bd6 {
[%emt 0:03:14]} 10. b3 {[%emt 0:03:02]} b6 {[%emt 0:03:34]} 11. Bd2 {[%emt 0:
00:00]} Bb7 {[%emt 0:01:05]} 12. Bd3 {[%emt 0:00:54]} e5 {[%emt 0:03:12]} 13.
dxe5 {[%emt 0:01:26]} Nxe5 {[%emt 0:00:21]} 14. Nxe5 {[%emt 0:00:36]} Bxe5 {
[%emt 0:00:28]} 15. Rc1 {[%emt 0:00:51]} dxc4 {[%emt 0:07:44]} 16. Bxc4 {
[%emt 0:00:32]} c5 {[%emt 0:02:02]} 17. Qe2 {[%emt 0:02:40]} a6 {[%emt 0:02:26]
} 18. a4 {[%emt 0:02:43]} Qc7 {[%emt 0:02:14]} 19. Red1 {[%emt 0:03:47]} Bh2+ {
[%emt 0:06:46]} 20. Kh1 {[%emt 0:00:32]} Re5 {[%emt 0:02:30]} 21. f3 {[%emt 0:
00:00]} Rh5 {[%emt 0:02:23]} 22. e4 {[%emt 0:01:07]} Be5 {[%emt 0:06:05]} 23.
Nd5 {[%emt 0:03:38]} Nxd5 {[%emt 0:07:56]} 24. exd5 {[%emt 0:00:55]} Bd4 {
[%emt 0:02:27]} 25. f4 {[%emt 0:01:59]} Rh4 {[%emt 0:01:56]} 26. Re1 {[%emt 0:
00:00]} Qd7 {[%emt 0:01:39]} 27. Qf3 {[%emt 0:00:34]} b5 {[%emt 0:01:18]} 28.
axb5 {[%emt 0:02:22]} axb5 {[%emt 0:00:05]} 29. Bd3 {[%emt 0:00:06]} Bxd5 {
[%emt 0:02:45]} 30. Be4 {[%emt 0:00:15]} Bxe4 {[%emt 0:01:05]} 31. Rxe4 {
[%emt 0:00:13]} Rd8 {[%emt 0:01:40]} 32. Ba5 {[%emt 0:02:15]} Re8 {[%emt 0:00:
00]} 33. Rce1 {[%emt 0:00:49]} Rxe4 {[%emt 0:00:17]} 34. Rxe4 {[%emt 0:00:15]}
h6 {[%emt 0:02:41]} 35. Be1 {[%emt 0:00:19]} Qd8 {[%emt 0:05:53]} 36. Bxh4 {
[%emt 0:00:26]} Qxh4 {[%emt 0:00:06]} 37. Re8+ {[%emt 0:00:27]} Kh7 {[%emt 0:
00:00]} 38. Qe4+ {[%emt 0:00:32]} g6 {[%emt 0:00:28]} 39. Qf3 {[%emt 0:03:10]}
Kg7 {[%emt 0:04:27]} 40. Re4 {[%emt 0:03:41]} Qd8 {[%emt 0:05:22]} 41. Qe2 {
[%emt 0:32:28]} Qa5 {[%emt 0:30:33]} 42. Qd1 {[%emt 0:00:58]} Qc3 {[%emt 0:00:
00]} 43. Kh2 {[%emt 0:02:05]} Qa1 {[%emt 0:07:17]} 44. Qf3 {[%emt 0:06:45]} h5
{[%emt 0:02:34]} 45. h4 {[%emt 0:00:46]} c4 {[%emt 0:00:00]} 46. bxc4 {[%emt 0:
00:00]} bxc4 {[%emt 0:00:00]} 47. Qe2 {[%emt 0:00:00]} Qg1+ {[%emt 0:00:00]}
48. Kg3 {[%emt 0:00:00]} c3 {[%emt 0:00:00]} 49. Qd3 {[%emt 0:00:00]} Qf2+ {
[%emt 0:00:00]} 50. Kh3 {[%emt 0:00:00]} c2 {[%emt 0:00:00]} 51. Re1 {[%emt 0:
00:00]} Qxe1 {[%emt 0:00:00]} 52. Qxd4+ {[%emt 0:00:00]} Kh7 {[%emt 0:00:00]}
53. Qf6 {[%emt 0:00:00]} Qe6+ {[%emt 0:00:00]} 0-1